bitfinex-derivatives/quotes_SOLF0:USTF0_20250110
["timestamp","ask_amount","ask_price","bid_price","bid_amount"]
[1736522820002,2.7054,184.87,184.77,32.89172968]
[1736522820301,32.89172968,184.92,184.74,32.89172968]
[1736522820498,2.7054,184.86,184.81,2.7061]
[1736522820700,32.89172968,184.92,184.74,32.89172968]
[1736522820899,32.89172968,184.92,184.77,32.89172968]
[1736522821300,3.1984,184.93,184.77,32.89172968]
[1736522821505,3.1984,184.93,184.8,32.89172968]
[1736522821701,5.9029,184.93,184.8,32.89172968]
[1736522821897,3.1984,184.93,184.8,32.89172968]
[1736522822096,2.7045,184.92,184.87,2.7051]
[1736522822493,2.7045,184.92,184.8,32.89172968]
[1736522823097,2.7045,184.92,184.83,2.7057]
[1736522823397,3.1984,184.93,184.8,32.89172968]
[1736522823598,3.1984,184.93,184.77,32.89172968]
[1736522823795,3.1984,184.93,184.84,2.7056]
[1736522824001,2.7051,184.89,184.84,2.7056]
[1736522824198,32.89172968,184.92,184.77,32.89172968]
[1736522824509,32.89172968,184.92,184.84,2.7057]
[1736522824703,32.89172968,184.89,184.74,32.89172968]
[1736522824902,32.89172968,184.89,184.79,2.7064]
[1736522825204,32.89172968,184.89,184.74,32.89172968]
[1736522825395,6.28,184.9,184.77,32.89172968]
[1736522825603,2.7052,184.87,184.82,2.7059]
[1736522826704,32.89172968,184.92,184.77,32.89172968]
[1736522826904,3.1984,184.93,184.7,39.17172968]
[1736522826905,3.1984,184.93,184.8,32.89172968]
[1736522827204,2.7051,184.88,184.77,32.89172968]
[1736522827405,32.89172968,184.89,184.74,32.89172968]
[1736522827607,32.89172968,184.86,184.7,32.89172968]
[1736522827797,2.7058,184.83,184.79,2.7063]
[1736522828409,32.89172968,184.86,184.7,32.89172968]
[1736522828709,34.46132968,184.86,184.7,32.89172968]
[1736522828902,1.5696,184.86,184.7,32.89172968]
[1736522829096,6.28,184.87,184.77,32.89172968]
[1736522829296,6.28,184.87,184.74,32.89172968]
[1736522829501,2.7058,184.83,184.79,2.7063]
[1736522829900,6.28,184.87,184.7,32.89172968]
[1736522830796,32.89172968,184.86,184.7,32.89172968]
[1736522830995,32.89172968,184.86,184.68,84.44]
[1736522831199,2.7064,184.79,184.75,2.7069]
[1736522831706,2.7064,184.79,184.68,84.44]
[1736522832006,2.7064,184.79,184.76,2.7068]
[1736522832305,2.7064,184.79,184.68,84.44]
[1736522832700,32.89172968,184.83,184.68,84.44]
[1736522832908,2.7064,184.79,184.68,84.44]
[1736522833102,4.7227,184.82,184.68,84.44]
[1736522833408,2.7069,184.76,184.68,84.44]
[1736522833599,4.7227,184.82,184.68,84.44]
[1736522834512,2.7063,184.8,184.76,2.7068]
[1736522834708,4.7227,184.82,184.68,84.44]
[1736522834709,32.89172968,184.81,184.68,84.44]
[1736522835104,2.7073,184.73,184.68,84.44]
[1736522835304,39.17172968,184.78,184.64,6.07862731]
[1736522835507,39.17172968,184.78,184.61,32.89172968]
[1736522835803,2.7075,184.72,184.68,2.7079]
[1736522836011,2.7075,184.72,184.61,32.89172968]
[1736522836212,39.17172968,184.78,184.61,32.89172968]
[1736522836414,2.7077,184.71,184.67,2.7081]
[1736522836605,39.17172968,184.78,184.61,32.89172968]
[1736522836809,2.7074,184.73,184.69,2.7078]
[1736522837008,32.89172968,184.75,184.61,32.89172968]
[1736522837408,2.7075,184.72,184.67,2.708]
[1736522837608,1.535,184.74,184.67,2.708]
[1736522837808,3.2201,184.73,184.67,2.708]
[1736522838410,2.7075,184.72,184.67,2.708]
[1736522838613,2.7075,184.72,184.68,2.708]
[1736522839007,3.2201,184.73,184.61,32.89172968]
[1736522839213,6.28,184.78,184.64,32.89172968]
[1736522839514,2.7067,184.77,184.65,20.26965983]
[1736522839713,2.7067,184.77,184.72,2.7073]
[1736522839913,6.28,184.78,184.65,20.26965983]
[1736522840311,2.7068,184.77,184.65,20.26965983]
[1736522840715,2.7069,184.76,184.72,2.7074]
[1736522841214,210.26965983,184.86,184.59,25.68825983]
[1736522841215,181.7301789,184.95,184.75,20.26965983]
[1736522841514,87.17820887,184.9,184.74,20.26965983]
[1736522841812,20.26965983,184.88,184.71,20.26965983]
[1736522842012,2.706,184.83,184.77,2.7066]
[1736522842307,2.706,184.83,184.71,20.26965983]
[1736522842308,6.28,184.83,184.71,20.26965983]
[1736522842505,2.7061,184.81,184.75,2.7069]
[1736522842705,2.7061,184.81,184.71,20.26965983]
[1736522842903,5.8831,184.81,184.71,20.26965983]
[1736522843206,87.17820887,184.95,184.8,20.26965983]
[1736522843410,87.17820887,184.95,184.87,32.86577476]
[1736522843804,87.17820887,184.95,184.92,2.7045]
[1736522844014,3.177,184.98,184.87,32.86577476]
[1736522844308,2.704,184.96,184.91,2.7046]
[1736522844511,3.177,184.98,184.87,32.86577476]
[1736522844704,2.7042,184.94,184.88,2.705]
[1736522844911,3.177,184.98,184.87,32.86577476]
[1736522845211,3.177,184.98,184.8,6.28]
[1736522845212,3.177,184.98,184.9,32.86577476]
[1736522846315,2.7031,185.02,184.96,2.7038]
[1736522846514,4.7573,185.04,184.9,32.86577476]
[1736522846812,2.7033,185.01,184.94,2.7041]
[1736522847014,4.7573,185.04,184.93,32.86577476]
[1736522847213,33.73511179,185.03,184.87,32.86577476]
[1736522847407,0.86933703,185.02,184.87,35.57097476]
[1736522847611,0.86933703,185.02,184.84,32.86577476]
[1736522848015,2.7045,184.93,184.87,2.7052]
[1736522848317,6.28,184.98,184.84,32.86577476]
[1736522848516,2.7049,184.9,184.84,32.86577476]
[1736522848712,32.86577476,184.97,184.81,32.86577476]
[1736522849021,2.7049,184.89,184.84,2.7057]
[1736522849211,32.86577476,184.97,184.81,32.86577476]
[1736522849412,1.6774,184.95,184.81,32.86577476]
[1736522849609,2.7047,184.91,184.86,2.7053]
[1736522849814,3.0867,184.94,184.86,2.7053]
[1736522850121,3.0867,184.94,184.84,32.86577476]
[1736522850620,2.7044,184.93,184.88,2.7051]
[1736522851018,3.0867,184.94,184.84,32.86577476]
[1736522852220,8.77451157,184.99,184.9,32.86577476]
[1736522852515,4.8936,185.03,184.9,32.86577476]
[1736522852718,2.7038,184.98,184.92,2.7045]
[1736522852921,4.8936,185.03,184.87,32.86577476]
[1736522853121,0.868065,185.02,184.87,32.86577476]
[1736522853316,0.868065,185.02,184.9,32.86577476]
[1736522853714,4.8936,185.03,184.91,2.7045]
[1736522853715,2.7038,184.98,184.91,2.7045]
[1736522853914,4.8936,185.03,184.87,32.86577476]
[1736522854119,32.86577476,185.01,184.87,32.86577476]
[1736522854417,0.86774202,185.0,184.87,32.86577476]
[1736522854619,0.86774202,185.0,184.84,32.86577476]
[1736522855219,0.86774202,185.0,184.89,2.7049]
[1736522855421,0.86774202,185.0,184.84,32.86577476]
[1736522855613,2.704,184.96,184.86,2.7053]
[1736522855819,0.86774202,184.95,184.84,32.86577476]
[1736522856018,32.86577476,185.01,184.84,32.86577476]
[1736522856221,2.7043,184.94,184.88,2.7051]
[1736522856422,32.86577476,184.98,184.84,32.86577476]
[1736522856624,3.1543,184.93,184.84,32.86577476]
[1736522856823,3.1543,184.93,184.77,32.86577476]
[1736522857123,2.48762064,184.92,184.77,32.86577476]
[1736522857323,1.6207,184.92,184.8,32.86577476]
[1736522857623,3.1543,184.93,184.83,32.86577476]
[1736522857817,3.1543,184.93,184.8,32.86577476]
[1736522858017,3.1543,184.93,184.83,32.86577476]
[1736522858215,3.1543,184.93,184.8,32.86577476]
[1736522858418,2.7051,184.88,184.83,2.7058]
[1736522858823,3.1543,184.93,184.8,32.86577476]
[1736522859223,3.1543,184.93,184.83,32.86577476]
[1736522859623,3.1543,184.93,184.8,32.86577476]
[1736522860127,2.7057,184.85,184.8,2.7062]
[1736522860626,2.7057,184.85,184.77,32.86577476]
[1736522860926,32.86577476,184.92,184.77,32.86577476]
[1736522861225,3.1543,184.93,184.74,32.86577476]
[1736522861226,32.86577476,184.89,184.74,32.86577476]
[1736522861421,2.7057,184.84,184.71,32.86577476]
[1736522861722,6.28,184.84,184.71,32.86577476]
[1736522861925,2.7064,184.8,184.71,32.86577476]
[1736522862327,6.28,184.84,184.76,2.7068]
[1736522862516,6.28,184.84,184.71,32.86577476]
[1736522862716,2.7063,184.8,184.71,32.86577476]
[1736522863326,6.28,184.84,184.75,2.7069]
[1736522863522,2.7064,184.79,184.75,2.7069]
[1736522864027,2.7063,184.8,184.76,2.7068]
[1736522864529,2.706,184.82,184.71,32.86577476]
[1736522865230,2.7061,184.81,184.77,2.7066]
[1736522865526,2.7061,184.81,184.71,32.86577476]
[1736522865527,9.4616,184.83,184.76,2.7068]
[1736522866623,2.7063,184.8,184.76,2.7068]
[1736522866825,9.4616,184.83,184.7,20.25433531]
[1736522867028,2.7065,184.79,184.7,20.25433531]
[1736522867230,9.4616,184.83,184.7,20.25433531]
[1736522867424,9.4616,184.83,184.76,2.7067]
[1736522867624,9.4616,184.83,184.7,20.25433531]
[1736522867925,9.4616,184.83,184.76,2.7068]
[1736522868127,2.7061,184.81,184.76,2.7068]
[1736522868322,3.1816,184.83,184.7,20.25433531]
[1736522868721,23.43593531,184.83,184.68,84.42]
[1736522869625,23.43593531,184.83,184.7,2.7077]
[1736522869924,2.7071,184.75,184.68,84.42]
[1736522870223,2.7071,184.75,184.71,2.7075]
[1736522870428,23.43593531,184.83,184.68,84.42]
[1736522871033,2.7071,184.75,184.68,84.42]
[1736522871325,23.43593531,184.83,184.67,20.25433531]
[1736522871627,20.25433531,184.8,184.55,84.46]
[1736522871825,20.25433531,184.77,184.55,90.74]
[1736522872127,2.7075,184.72,184.67,2.7081]
[1736522872319,2.7075,184.72,184.62,20.25433531]
[1736522872926,6.28,184.75,184.48,7.47423785]
[1736522872927,20.25433531,184.66,184.48,7.47423785]
[1736522873123,20.25433531,184.63,184.48,7.47423785]
[1736522873330,20.25433531,184.6,184.48,31.51965142]
[1736522873535,2.7096,184.57,184.51,2.7104]
[1736522873733,20.25433531,184.6,184.48,31.51965142]
[1736522874128,2.71,184.55,184.48,34.23055142]
[1736522874330,6.28,184.56,184.47,6.08364846]
[1736522875332,6.28,184.56,184.5,2.7105]
[1736522875635,6.28,184.56,184.47,6.08364846]
[1736522876327,2.7101,184.54,184.49,2.7108]
[1736522876642,6.28,184.56,184.43,1.6227]
[1736522876839,2.7101,184.55,184.48,2.7108]
[1736522877033,6.28,184.56,184.43,1.6227]
[1736522877623,2.7101,184.54,184.48,2.7109]
[1736522877829,6.28,184.56,184.43,1.6227]
[1736522878929,2.7089,184.63,184.5,2.7106]
[1736522879130,3.2553,184.75,184.61,33.01194964]
[1736522879529,3.2553,184.75,184.64,33.01194964]
[1736522879832,3.2553,184.75,184.62,1.6293]
[1736522880034,2.7083,184.67,184.61,2.709]
[1736522880227,2.7083,184.67,184.58,33.01194964]
[1736522880427,33.01194964,184.74,184.58,33.01194964]
[1736522880628,33.01194964,184.71,184.57,2.7096]
[1736522880831,1.6697,184.7,184.55,33.01194964]
[1736522881025,1.6697,184.7,184.58,33.01194964]
[1736522881829,3.2553,184.75,184.58,33.01194964]
[1736522882136,9.5353,184.75,184.61,33.01194964]
[1736522882340,9.5353,184.75,184.64,33.01194964]
[1736522882930,2.7075,184.72,184.64,35.72054964]
[1736522883134,9.5353,184.75,184.64,33.01194964]
[1736522883427,2.7076,184.71,184.64,33.01194964]
[1736522883634,9.5353,184.75,184.61,33.01194964]
[1736522883834,33.01194964,184.74,184.58,33.01194964]
[1736522884137,33.01194964,184.74,184.59,2.7093]
[1736522884636,33.01194964,184.74,184.58,33.01194964]
[1736522884935,33.01194964,184.74,184.54,1.6293]
[1736522884936,9.5353,184.75,184.61,33.01194964]
[1736522885327,33.01194964,184.74,184.58,33.01194964]
[1736522886037,2.7085,184.65,184.59,2.7092]
[1736522886428,2.7085,184.65,184.58,33.01194964]
[1736522886639,2.7079,184.69,184.58,35.72124964]
[1736522886833,33.01194964,184.71,184.55,33.01194964]
[1736522887035,33.01194964,184.71,184.54,1.6293]
[1736522887634,7.7971,184.72,184.58,33.01194964]
[1736522887839,7.7971,184.72,184.61,2.709]
[1736522888339,7.7971,184.72,184.58,33.01194964]
[1736522888536,6.28,184.72,184.61,33.01194964]
[1736522888742,3.2553,184.75,184.64,33.01194964]
[1736522889134,3.2553,184.75,184.66,2.7083]
[1736522889534,3.2553,184.75,184.64,33.01194964]
[1736522890236,3.2553,184.75,184.64,2.7086]
[1736522890542,3.2553,184.75,184.59,33.01194964]
[1736522890737,3.2553,184.75,184.62,33.01194964]
[1736522891137,33.01194964,184.74,184.59,33.01194964]
[1736522891342,33.01194964,184.74,184.56,33.01194964]
[1736522891538,0.86318407,184.73,184.56,33.01194964]
[1736522891937,0.86318407,184.73,184.54,1.6293]
[1736522891938,33.01194964,184.74,184.59,33.01194964]
[1736522892242,193.2553,184.75,184.62,33.01194964]
[1736522893336,193.2553,184.75,184.65,33.01194964]
[1736522893742,2.7078,184.7,184.65,35.72034964]
[1736522893942,193.2553,184.75,184.65,33.01194964]
[1736522894339,2.7074,184.73,184.68,2.708]
[1736522894641,3.2553,184.75,184.65,33.01194964]
[1736522894835,2.7076,184.71,184.66,2.7082]
[1736522895041,3.2553,184.75,184.54,1.6293]
[1736522895042,3.2553,184.75,184.62,33.01194964]
[1736522895538,3.2553,184.75,184.64,2.7085]
[1736522895744,3.2553,184.75,184.62,33.01194964]
[1736522895944,33.01194964,184.8,184.65,33.01194964]
[1736522896143,6.26,184.8,184.68,33.01194964]
[1736522897142,6.26,184.8,184.66,1.566]
[1736522897143,39.27194964,184.8,184.66,1.566]
[1736522897443,33.01194964,184.77,184.62,33.01194964]
[1736522897644,1.6286,184.76,184.62,33.01194964]
[1736522897848,2.7076,184.71,184.66,2.7082]
[1736522898045,1.6286,184.76,184.65,33.01194964]
[1736522899249,2.7074,184.73,184.68,2.708]
[1736522899550,6.26,184.8,184.65,33.01194964]
[1736522900051,2.7072,184.74,184.69,2.7078]
[1736522900551,7.7849,184.83,184.68,33.01194964]
[1736522900747,7.7849,184.83,184.71,33.01194964]
[1736522900943,2.7069,184.76,184.71,2.7076]
[1736522901753,7.7849,184.83,184.71,2.7076]
[1736522901948,40.79684964,184.83,184.65,33.01194964]
[1736522902150,2.7067,184.77,184.65,33.01194964]
[1736522902351,33.01194964,184.8,184.66,2.7082]
[1736522902552,33.01194964,184.8,184.62,34.58624964]
[1736522902953,33.01194964,184.77,184.63,2.7087]
[1736522903351,33.01194964,184.77,184.59,33.01194964]
[1736522903553,0.86523282,184.76,184.59,33.01194964]
[1736522903749,2.7076,184.71,184.59,33.01194964]
[1736522904054,6.26,184.73,184.63,2.7087]
[1736522904358,6.26,184.73,184.59,33.01194964]
[1736522904359,2.7082,184.67,184.59,33.01194964]
[1736522904559,6.26,184.73,184.62,2.7089]
[1736522904757,6.26,184.73,184.59,33.01194964]
[1736522904955,2.708,184.69,184.64,2.7085]
[1736522905153,6.26,184.73,184.62,33.01194964]
[1736522905357,3.2041,184.75,184.65,33.01194964]
[1736522905558,2.7073,184.74,184.68,2.7079]
[1736522905758,3.2041,184.75,184.65,33.01194964]
[1736522905959,3.2041,184.75,184.62,33.01194964]
[1736522906160,2.7079,184.69,184.64,2.7085]
[1736522906363,3.2041,184.75,184.62,33.01194964]
[1736522906656,3.2041,184.75,184.63,2.7087]
[1736522906859,3.2041,184.75,184.57,1.5743]
[1736522906860,3.2041,184.75,184.62,33.01194964]
[1736522907857,3.2041,184.75,184.66,2.7083]
[1736522908055,3.2041,184.75,184.62,33.01194964]
[1736522908263,3.2041,184.75,184.63,2.7086]
[1736522908264,2.708,184.68,184.63,2.7086]
[1736522908460,3.2041,184.75,184.62,33.01194964]
[1736522908860,2.7076,184.71,184.65,2.7083]
[1736522909157,3.2041,184.75,184.62,33.01194964]
[1736522909363,3.2041,184.75,184.59,33.01194964]
[1736522909563,2.708,184.68,184.59,20.28456565]
[1736522909862,3.2041,184.75,184.59,20.28456565]
[1736522910052,2.7083,184.67,184.62,2.7088]
[1736522910252,3.2041,184.75,184.62,2.7088]
[1736522910253,20.28456565,184.73,184.62,2.7088]
[1736522910452,1.5761,184.72,184.57,1.5743]
[1736522910962,1.5761,184.72,184.6,2.7091]
[1736522911159,20.28456565,184.7,184.53,20.28456565]
[1736522911356,6.26,184.69,184.53,20.28456565]
[1736522911559,6.26,184.69,184.57,2.7095]
[1736522912457,20.28456565,184.67,184.53,20.28456565]
[1736522912662,20.28456565,184.64,184.5,20.28456565]
[1736522912864,3.1905,184.63,184.5,20.28456565]
[1736522913062,4.7957,184.63,184.5,20.28456565]
[1736522913355,4.7957,184.63,184.48,1.7153]
[1736522913561,2.7099,184.56,184.5,2.7106]
[1736522913957,4.7957,184.63,184.48,1.5149]
[1736522914358,4.7957,184.63,184.51,2.7105]
[1736522914658,4.7957,184.63,184.48,1.5149]
[1736522914857,4.7957,184.63,184.5,2.7107]
[1736522915261,2.7099,184.56,184.5,2.7107]
[1736522915661,2.7099,184.56,184.48,1.5149]
[1736522915861,6.26,184.6,184.48,1.5149]
[1736522917161,4.7957,184.63,184.5,20.28456565]
[1736522917565,2.7093,184.6,184.55,2.7098]
[1736522917764,4.7957,184.63,184.5,20.28456565]
[1736522918163,2.7091,184.61,184.56,2.7097]
[1736522919464,3.2174,184.63,184.58,2.7094]
[1736522919662,6.26,184.69,184.53,20.28456565]
[1736522919962,6.26,184.69,184.56,20.28456565]
[1736522920168,6.26,184.69,184.53,20.28456565]
[1736522920366,20.28456565,184.67,184.5,20.28456565]
[1736522920668,3.0498,184.66,184.5,20.28456565]
[1736522920875,3.0498,184.66,184.53,2.7101]
[1736522921058,1.5546,184.65,184.53,2.7101]
[1736522921364,1.5546,184.65,184.5,20.28456565]
[1736522921758,1.5546,184.65,184.53,20.28456565]
[1736522922765,2.7088,184.63,184.59,2.7093]
[1736522923164,1.5546,184.65,184.53,20.28456565]
[1736522923365,2.7092,184.6,184.53,20.28456565]
[1736522923868,2.7087,184.64,184.53,20.28456565]
[1736522924067,1.5546,184.65,184.53,20.28456565]
[1736522924368,2.709,184.62,184.53,20.28456565]
[1736522924572,1.5546,184.65,184.53,20.28456565]
[1736522924864,2.709,184.62,184.56,2.7097]
[1736522925069,1.5546,184.65,184.5,20.28456565]
[1736522925466,2.7097,184.57,184.53,2.7102]
[1736522925672,20.28456565,184.64,184.48,1.5149]
[1736522925971,2.71,184.55,184.51,2.7105]
[1736522926472,2.7097,184.57,184.53,2.7102]
[1736522926663,20.28456565,184.64,184.48,1.5149]
[1736522926869,0.86270286,184.63,184.47,104.80456565]
[1736522927165,20.28456565,184.64,184.47,104.80456565]
[1736522927375,0.86288409,184.63,184.51,2.7104]
[1736522927972,2.7099,184.56,184.51,2.7104]
[1736522928169,1.5546,184.65,184.5,20.28456565]
[1736522928374,1.5546,184.65,184.53,20.28456565]
[1736522928772,1.5546,184.65,184.57,2.7095]
[1736522928973,1.5546,184.65,184.53,20.28456565]
[1736522929267,1.5546,184.65,184.56,20.28456565]
[1736522929866,2.708,184.68,184.59,20.28456565]
[1736522930065,3.2334,184.74,184.59,20.28456565]
[1736522930275,3.2334,184.74,184.62,20.28456565]
[1736522930875,3.2334,184.74,184.64,2.7085]
[1736522931075,2.7078,184.7,184.62,20.28456565]
[1736522931271,3.2334,184.74,184.62,20.28456565]
[1736522931477,3.2334,184.74,184.65,20.28456565]
[1736522931978,20.28456565,184.83,184.65,20.28456565]
[1736522932173,3.2215,184.8,184.68,20.28456565]
[1736522932575,3.2215,184.8,184.72,2.7073]
[1736522933782,3.2215,184.8,184.69,1.6682]
[1736522934584,2.7067,184.78,184.72,2.7074]
[1736522934785,3.2215,184.8,184.72,2.7074]
[1736522934986,2.7066,184.78,184.72,2.7074]
[1736522935181,2.7066,184.78,184.73,2.7072]
[1736522935379,6.26,184.83,184.71,20.28456565]
[1736522935887,6.26,184.83,184.69,1.6682]
[1736522936279,6.26,184.83,184.71,2.7075]
[1736522936478,26.54456565,184.83,184.69,1.6682]
[1736522937083,6.26,184.83,184.69,1.6682]
[1736522937280,6.26,184.83,184.74,2.7071]
[1736522937783,26.54456565,184.83,184.71,2.7075]
[1736522938982,2.7068,184.77,184.71,2.7075]
[1736522939186,26.54456565,184.83,184.68,20.28456565]
[1736522939390,0.86356635,184.82,184.7,2.7077]
[1736522939691,20.28456565,184.8,184.65,20.28456565]
[1736522939882,26.54456565,184.83,184.65,20.28456565]
[1736522940084,2.7068,184.77,184.68,20.28456565]
[1736522940287,26.54456565,184.83,184.68,20.28456565]
[1736522940888,26.54456565,184.83,184.72,2.7074]
[1736522941088,26.54456565,184.83,184.68,20.28456565]
[1736522942084,2.7073,184.74,184.65,20.28456565]
[1736522942287,26.54456565,184.83,184.65,20.28456565]
[1736522942490,20.28456565,184.8,184.68,2.7079]
[1736522942991,2.7074,184.73,184.68,2.7079]
[1736522943394,2.7068,184.77,184.68,2.7079]
[1736522943598,3.2692,184.76,184.68,2.7079]
[1736522943890,3.2692,184.76,184.67,2.7081]
[1736522944087,3.2692,184.76,184.65,20.28456565]
[1736522944088,3.2692,184.76,184.62,21.93596565]
[1736522944284,3.2692,184.76,184.65,20.28456565]
[1736522944888,21.83646565,184.86,184.68,20.28456565]
[1736522945094,1.6039,184.82,184.71,20.28456565]
[1736522945590,1.6039,184.82,184.74,20.28456565]
[1736522945796,1.6039,184.82,184.79,2.7064]
[1736522946088,2.7058,184.83,184.79,2.7064]
[1736522946291,2.7056,184.85,184.81,2.7061]
[1736522946587,1.6039,184.88,184.72,1.5463]
[1736522946588,1.6039,184.88,184.73,0.1992]
[1736522946794,1.6039,184.88,184.77,2.7067]
[1736522946795,2.7059,184.83,184.77,2.7067]
[1736522946982,1.6039,184.88,184.78,20.28456565]
[1736522947189,6.24,184.94,184.78,20.28456565]
[1736522947490,0.86443541,184.93,184.83,2.7057]
[1736522947791,20.28456565,184.95,184.81,20.28456565]
[1736522947792,26.52456565,184.95,184.81,20.28456565]
[1736522947996,26.52456565,184.95,184.84,2.7057]
[1736522948190,20.28456565,184.95,184.84,2.7057]
[1736522948794,9.4247,184.96,184.84,2.7057]
[1736522948795,3.1847,184.96,184.84,20.28456565]
[1736522948988,2.7045,184.92,184.84,20.28456565]
[1736522949193,3.1847,184.96,184.84,20.28456565]
[1736522949989,3.1847,184.96,184.84,2.7055]
[1736522950194,1.6039,184.96,184.84,2.7055]
[1736522950394,21.94706565,184.95,184.77,20.28456565]
[1736522950590,21.94706565,184.95,184.8,2.7062]
[1736522950990,0.86483894,184.94,184.8,2.7062]
[1736522951187,21.94706565,184.95,184.77,20.28456565]
[1736522951590,1.6625,184.95,184.77,20.28456565]
[1736522951794,2.7048,184.9,184.83,2.7057]
[1736522952494,21.94706565,184.95,184.77,20.28456565]
[1736522952697,20.28456565,184.92,184.77,20.28456565]
[1736522952885,2.7052,184.88,184.77,20.28456565]
[1736522953085,20.28456565,184.92,184.77,20.28456565]
[1736522953289,21.94706565,184.95,184.77,20.28456565]
[1736522953685,21.94706565,184.95,184.82,2.7058]
[1736522953686,2.7051,184.88,184.82,2.7058]
[1736522954096,20.28456565,184.92,184.77,20.28456565]
[1736522954787,20.28456565,184.92,184.8,2.7062]
[1736522954993,20.28456565,184.92,184.77,20.28456565]
[1736522955195,1.6625,184.95,184.83,20.28456565]
[1736522955589,1.6039,184.96,184.86,20.28456565]
[1736522956294,1.6039,184.96,184.9,2.7047]
[1736522956792,1.6039,184.96,184.86,20.28456565]
[1736522956996,1.6039,184.96,184.91,2.7045]
[1736522957795,4.2433,184.97,184.91,2.7045]
[1736522958590,1.5395,184.97,184.89,20.28456565]
[1736522958796,2.7043,184.94,184.88,2.7051]
[1736522959187,4.2433,184.97,184.91,2.7046]
[1736522959392,1.5395,184.97,184.91,2.7046]
[1736522960097,2.704,184.96,184.91,2.7046]
[1736522961192,2.704,184.96,184.92,2.7045]
[1736522961393,2.7038,184.98,184.89,20.28456565]
[1736522961593,1.5648,185.01,184.92,2.7044]
[1736522961790,1.5648,185.01,184.89,20.28456565]
[1736522961997,2.7039,184.97,184.89,20.28456565]
[1736522962196,1.5648,185.01,184.89,20.28456565]
[1736522962700,1.5648,185.01,184.9,2.7048]
[1736522962900,1.5648,185.01,184.86,20.28456565]
[1736522963102,21.84936565,185.01,184.86,20.28456565]
[1736522963494,2.7045,184.93,184.83,22.13536565]
[1736522963698,2.7045,184.93,184.88,2.705]
[1736522963898,21.84936565,185.01,184.83,22.13536565]
[1736522964097,2.7042,184.95,184.83,22.13536565]
[1736522964402,21.84936565,185.01,184.83,22.13536565]
[1736522964595,21.84936565,185.01,184.86,20.28456565]
[1736522964801,21.84936565,185.01,184.91,2.7046]
[1736522965001,1.5648,185.01,184.86,20.28456565]
[1736522965202,2.7039,184.97,184.86,20.28456565]
[1736522965804,1.5648,185.01,184.86,20.28456565]
[1736522966007,1.5648,185.01,184.89,20.28456565]
[1736522966212,1.5648,185.01,184.92,20.28456565]
[1736522966414,2.7034,185.0,184.92,20.28456565]
[1736522966614,1.5648,185.01,184.89,20.28456565]
[1736522967009,1.5648,185.01,184.94,2.7042]
[1736522967405,1.5648,185.01,184.93,2.7042]
[1736522968413,1.5648,185.01,184.89,20.28456565]
[1736522968810,2.7037,184.98,184.89,20.28456565]
[1736522969017,1.5648,185.01,184.89,20.28456565]
[1736522969415,2.7035,184.99,184.89,20.28456565]
[1736522969610,1.5648,185.01,184.89,20.28456565]
[1736522970417,1.5648,185.01,184.92,2.7044]
[1736522970623,1.5648,185.01,184.89,20.28456565]
[1736522971415,1.5648,185.01,184.83,1.8508]
[1736522971416,1.5648,185.01,184.86,20.28456565]
[1736522971919,2.704,184.96,184.93,2.7043]
[1736522972119,1.5648,185.01,184.93,2.7043]
[1736522972319,1.5648,185.01,184.86,20.28456565]
[1736522972521,2.7037,184.98,184.94,2.7042]
[1736522973317,1.5648,185.01,184.89,20.28456565]
[1736522973511,2.7038,184.97,184.93,2.7043]
[1736522973715,2.7038,184.97,184.89,20.28456565]
[1736522974121,2.7036,184.98,184.95,2.7041]
[1736522974618,2.7036,184.98,184.89,20.28456565]
[1736522974817,1.5648,185.01,184.86,20.28456565]
[1736522975220,2.7042,184.95,184.91,2.7045]
[1736522975525,21.84936565,185.01,184.86,20.28456565]
[1736522975716,21.84936565,185.01,184.83,22.13536565]
[1736522975917,2.7043,184.94,184.83,22.13536565]
[1736522976321,2.7037,184.98,184.95,2.704]
[1736522976615,1.5648,185.01,184.89,20.28456565]
[1736522976817,2.7034,185.0,184.96,2.7038]